Cogmind - Beta 10.1 @@@ ROGUE MODE // 2020.10.20 @ 01:11:34 Player: WayneKnight Result: Destroyed by Striker with Compact Linear Accelerator Performance ------------- Evolutions (7) 3500 Regions Visited (15) 3000 Robots Destroyed (166) 830 Value Destroyed (5567) 5567 Prototype IDs (51) 1020 Alien Tech Used (0) 0 Bonus (1790) 1790 TOTAL SCORE: 15707 Bonus ------- High Alert Combat Kills 265 Follower Combat Kills 39 Entered Garrisons 200 Used RIF Installer 500 Aligned with FarCom 300 Scanned by Researcher 500 Friendly Fire -14 Cogmind --------- Core Integrity 0/1300 Matter 208/300 Energy 99/100 System Corruption 3% Temperature Cool (0) Movement Core (50) Location -3/Testing Parts ------- > --- POWER (2) -------- (None) > --- PROPULSION (6) --- (None) > --- UTILITY (10) ----- (None) > --- WEAPON (3) ------- (None) > --- INVENTORY (4) ---- Micro Fission Core Light Antimatter Reactor Perforator Peak State ------------ > --- POWER ------------ Heavy Deuterium Engine > --- PROPULSION ------- Improved Medium Treads Flexi-carbon Leg Flexi-carbon Leg Flexi-carbon Leg Gravmag System > --- UTILITY ---------- Large Storage Unit High-capacity Storage Unit High-capacity Storage Unit Enhanced Optical Array Improved Sensor Array Advanced Signal Interpreter > --- WEAPON ----------- Autogun Flak Gun Advanced Assault Cannon > --- INVENTORY -------- Light Nuclear Core Light Nuclear Core Improved Deuterium Engine Xenon Bombardment Thruster Xenon Bombardment Thruster Large Storage Unit Large Storage Unit Modified TNC Advanced Targeting Computer Improved ECM Suite Advanced ECM Suite Layered Light Armor Plating Hacking Suite Dynamic Insulation System High-powered Electrolaser Heavy Plasma Cannon Guided Plasma Cannon Heavy Assault Rifle Proton Missile Launcher Rocket Launcher Greatsword Greatsword [Rating: 60] Favorites ----------- Power Heavy Ion Engine Engine Heavy Ion Engine Power Core Light Nuclear Core Propulsion Light Treads Treads Light Treads Leg Flexi-carbon Leg Wheel Compact Wheel Hover Unit Gravmag System Flight Unit Xenon Bombardment Thruster Utility High-capacity Storage Unit Device Advanced Sensor Array Storage High-capacity Storage Unit Processor Advanced Signal Interpreter Protection Hardened Medium Armor Plating Weapon Autogun Energy Gun EM Shotgun Energy Cannon Guided Plasma Cannon Ballistic Gun Autogun Ballistic Cannon Advanced Assault Cannon Launcher Mini Grenade Launcher Impact Weapon Heavy Flail Slashing Weapon Greatsword Special Melee Weapon Datajack Build | -11 -10 -9 -9 -9 -8 -8 -8 -8 -7 -6 -5 -4 -4 -3 -3 ------- Run | Scr Mat Mat Min Exi Min Mat Sto Gar Fac Fac Fac Fac Ext Res Tes Slots Evolved 14 | . . 2 . . . 2 . . 2 2 2 2 . 2 . Power 1 | . . . . . . . . . . . 1 . . . . Propulsion 4 | . . 1 . . . . . . 1 1 . 1 . . . Utility 8 | . . 1 . . . 1 . . 1 1 1 1 . 2 . Weapon 1 | . . . . . . 1 . . . . . . . . . Parts Attached 136 | . 13 18 2 1 4 22 5 10 28 15 7 1 . 1 9 Power 11 | . 1 2 1 . . 2 . . 4 1 . . . . . Engine 9 | . 1 2 . . . 2 . . 4 . . . . . . Core 2 | . . . 1 . . . . . . 1 . . . . . Reactor . | . . . . . . . . . . . . . . . . Propulsion 53 | . 7 7 1 . 2 4 1 5 11 7 1 1 . 1 5 Treads 32 | . 4 7 1 . 1 4 1 5 7 1 . . . 1 . Leg 5 | . . . . . 1 . . . . 3 1 . . . . Wheel 3 | . 3 . . . . . . . . . . . . . . Hover 7 | . . . . . . . . . 3 1 . . . . 3 Flight 6 | . . . . . . . . . 1 2 . 1 . . 2 Utility 14 | . 3 1 . 1 . 2 . . 4 2 1 . . . . Device 2 | . . . . . . . . . 1 1 . . . . . Storage 5 | . 2 1 . 1 . 1 . . . . . . . . . Processor 2 | . . . . . . . . . 1 1 . . . . . Hackware . | . . . . . . . . . . . . . . . . Protection 5 | . 1 . . . . 1 . . 2 . 1 . . . . Artifact . | . . . . . . . . . . . . . . . . Weapon 58 | . 2 8 . . 2 14 4 5 9 5 5 . . . 4 Energy Gun 10 | . 2 2 . . . 5 . . . . . . . . 1 Energy Cannon 2 | . . . . . . . . . . 1 1 . . . . Ballistic Gun 34 | . . 4 . . 2 9 3 3 8 3 2 . . . . Ballistic Cannon 3 | . . . . . . . . . . 1 . . . . 2 Launcher 2 | . . . . . . . . 2 . . . . . . . Special Weapon . | . . . . . . . . . . . . . . . . Impact Weapon 1 | . . . . . . . 1 . . . . . . . . Slashing Weapon 4 | . . . . . . . . . 1 . 2 . . . 1 Piercing Weapon . | . . . . . . . . . . . . . . . . Special Melee Weapon 2 | . . 2 . . . . . . . . . . . . . Unidentified Prototypes 11 | . . 1 . . . 2 1 . 3 . 1 1 . . 2 Parts Lost 47 | . . 3 1 . 3 6 1 2 3 15 7 . 1 . 5 Power 2 | . . . . . . 1 . . . 1 . . . . . Propulsion 24 | . . . 1 . 2 1 1 2 1 8 2 . 1 . 5 Utility 5 | . . . . . . 1 . . 1 . 3 . . . . Weapon 16 | . . 3 . . 1 3 . . 1 6 2 . . . . Highest Loss Streak 10 | . . 1 1 . 2 3 1 1 1 10 6 . 1 . 3 Average Slot Usage (%) 93 | . 96 100 100 100 99 97 97 99 99 93 20 2 4 2 8 Engine 7 | . 14 11 8 . . 8 9 9 7 5 . . . . . Core 1 | . . . 2 11 11 . . . . . . . . . . Treads 24 | . 14 30 33 33 25 26 24 26 27 11 . . . 2 2 Leg 1 | . 1 . . . 6 . . . . 6 3 . . . . Wheel 1 | . 12 2 . . . . . . . . . . . . . Hover 1 | . . . . . . . . . 2 8 . . . . 4 Storage 27 | . 20 33 33 33 33 34 36 36 23 19 . . . . . Processor 2 | . . . . . . . . . 6 13 7 . . . . Protection 1 | . 5 . . . . . . . 5 4 1 . . . . Energy Gun 3 | . 22 7 . . . 4 9 . . . . . . . . Ballistic Gun 18 | . 6 13 22 22 22 20 13 25 22 18 1 . . . . Naked Turns 178 | . . . . . . . . . . . 63 63 7 12 33 Heaviest Build 131 | 13 75 94 94 91 92 131 129 129 129 109 12 . . . 5 Greatest Support 100 | 20 40 60 60 60 60 66 66 70 100 70 3 9 9 3 20 Greatest Overweight (x) 32 | . 4 5 1 1 2 2 2 2 32 5 3 . . . 1 Average Overweight (x) 1 | . 1 1 1 1 1 1 1 1 . 1 . . . . . Largest Inventory Capacity 34 | 6 20 26 26 26 26 34 34 34 34 26 4 4 4 4 4 Average Capacity 26 | 6 12 25 26 26 26 32 34 34 26 25 4 4 4 4 4 Most Carried 34 | 6 17 26 26 26 26 34 34 34 29 26 4 4 4 4 4 Average Carried 24 | 6 8 24 25 25 25 28 33 31 25 24 2 4 4 4 3 Final Capacity 34 | 6 20 26 26 26 26 34 34 34 26 4 4 4 4 4 4 Final Carried 34 | 6 17 26 25 26 26 34 32 30 26 4 4 4 4 4 4 Class Distribution -------------------- 36% | Hauler-Mutant 28% | Hauler-Skirmisher 21% | Scavenger-Tank 9% | Mutant Dominant Class ---------------- Mutant | -10/Materials Hauler-Mutant | -9/Materials Hauler-Mutant | -9/Mines Hauler-Mutant | -9/Exiles Hauler-Mutant | -8/Mines Hauler-Skirmisher | -8/Materials Hauler-Mutant | -8/Storage Hauler-Skirmisher | -8/Garrison Scavenger-Tank | -7/Factory Scavenger-Tank | -6/Factory Mutant | -5/Factory Mutant | -4/Factory Mutant | -4/Extension Mutant | -3/Research Mutant | -3/Testing Resources | -11 -10 -9 -9 -9 -8 -8 -8 -8 -7 -6 -5 -4 -4 -3 -3 ----------- Run | Scr Mat Mat Min Exi Min Mat Sto Gar Fac Fac Fac Fac Ext Res Tes Matter Collected 4479 | 209 164 439 207 . 98 758 60 404 1147 490 347 . . . 156 Remotely . | . . . . . . . . . . . . . . . . Salvage Created 6814 | 67 246 1264 218 . 139 1409 102 694 1610 567 444 . . . 54 Parts 407 | 2 19 91 13 . 14 79 7 31 98 34 15 . . . 4 Haulers Intercepted 6 | . 1 . . . . 2 1 . 2 . . . . . . Recyclers Shooed 6 | . . 1 1 . . 1 . . 1 . 2 . . . . Parts Field Recycled . | . . . . . . . . . . . . . . . . Retrieved Matter . | . . . . . . . . . . . . . . . . Parts Self-Destructed . | . . . . . . . . . . . . . . . . Prevented . | . . . . . . . . . . . . . . . . Kills | -11 -10 -9 -9 -9 -8 -8 -8 -8 -7 -6 -5 -4 -4 -3 -3 ------- Run | Scr Mat Mat Min Exi Min Mat Sto Gar Fac Fac Fac Fac Ext Res Tes Combat Hostiles Destroyed 136 | . 8 28 9 . 3 27 1 14 28 13 5 . . . . Melee 2 | . . . . . . . . . . . 2 . . . . Guns 128 | . 8 28 9 . 3 26 1 11 28 11 3 . . . . Cannons 2 | . . . . . . . . . . 2 . . . . . AOE 4 | . . . . . . 1 . 3 . . . . . . . Classes Destroyed 17 | 1 4 5 2 . 2 . . 1 1 . . . . . 1 Worker 8 | . . 2 1 . . 1 . . 4 . . . . . . Builder 6 | . . . . . 2 1 . . 3 . . . . . . Hauler 6 | . 1 . . . . 2 1 . 2 . . . . . . Recycler 2 | 1 . . . . . . . . . . 1 . . . . Operator 2 | . . 2 . . . . . . . . . . . . . Watcher 5 | . 1 2 . . . 2 . . . . . . . . . Swarmer 30 | . 6 7 3 . . 6 . . 3 5 . . . . . Grunt 58 | . 2 12 2 . 1 12 . 9 15 1 4 . . . . Brawler 4 | . . 1 . . . 1 . 2 . . . . . . . Duelist 2 | . . 1 . . . . . . 1 . . . . . . Researcher 1 | . . . . . . . . . . . . . . . 1 Sentry 23 | . . 7 . . . 8 1 1 3 2 1 . . . . Demolisher 1 | . . . 1 . . . . . . . . . . . . Hunter 8 | . . . . . 2 . . 1 2 3 . . . . . Programmer 6 | . . . . . . . . . 4 2 . . . . . Behemoth 1 | . . . . . . . . 1 . . . . . . . Assembled 3 | . . . 3 . . . . . . . . . . . . Best Kill Streak 6 | 1 3 6 4 . 1 5 2 3 5 4 4 . . . 1 Combat Bots Only 6 | . 3 6 4 . 1 5 1 3 5 4 4 . . . . Max Kills in Single Turn 2 | 1 2 1 1 . 1 2 1 2 2 1 1 . . . 1 Gunslinging 1 | . 1 . . . . 1 . . 1 . . . . . . Exploded 2 | . . . . . . 1 . 2 . . . . . . . Melee 1 | . . . . . . . . . . . 1 . . . . Uniques/NPCs Destroyed . | . . . . . . . . . . . . . . . . Combat | -11 -10 -9 -9 -9 -8 -8 -8 -8 -7 -6 -5 -4 -4 -3 -3 -------- Run | Scr Mat Mat Min Exi Min Mat Sto Gar Fac Fac Fac Fac Ext Res Tes Damage Taken 12393 | . 361 967 416 . 185 1656 52 787 1466 2592 1059 241 465 87 2059 Core 3362 | . 116 179 47 . . 168 . 79 79 484 258 182 454 30 1286 Absorbed by Shields . | . . . . . . . . . . . . . . . . Core Remaining (%) 62 | 100 53 . . . 43 . . 55 88 43 74 . 44 . . Volleys Fired 422 | 3 28 70 32 . 10 79 2 32 85 53 24 . . . 4 Largest 3 | 2 2 2 2 . 2 3 3 3 3 3 1 . . . 1 Hottest 124 | 60 90 90 46 . 46 124 93 75 73 99 120 . . . 100 Shots Fired 1040 | 6 56 137 64 . 20 228 6 94 253 148 24 . . . 4 Gun 1010 | 6 56 137 64 . 20 228 6 90 253 127 23 . . . . Cannon 26 | . . . . . . . . . . 21 1 . . . 4 Launcher 4 | . . . . . . . . 4 . . . . . . . Special . | . . . . . . . . . . . . . . . . Kinetic 874 | 3 16 82 64 . 20 167 4 90 253 148 23 . . . 4 Thermal 15 | . . . . . . 14 . . . . 1 . . . . Explosive 4 | . . . . . . . . 4 . . . . . . . Electromagnetic 147 | 3 40 55 . . . 47 2 . . . . . . . . Robot Hit Streak 33 | 2 8 18 11 . 10 30 12 26 33 14 16 . . . 4 Robot Miss Streak 8 | 1 7 2 8 . 2 3 . 2 3 4 3 . . . 8 Penetration Max 1 | . . . . . . 1 . . . 1 1 . . . . Secondary Targets 10 | . 1 . . . . 4 . 2 3 . . . . . . Max Gunslinging Chain 1 | . 1 . . . . 1 . 1 1 . . . . . . Shots Hit Robots 760 | 3 35 112 31 . 18 176 5 73 166 102 35 . . . 4 Core Hits 342 | 1 15 60 14 . 10 68 3 31 75 44 17 . . . 4 Critical Hits 17 | . . 3 . . . 4 . . 4 3 1 . . . 2 Critical Kills 4 | . . . . . . 1 . . 2 . . . . . 1 Critical Parts Destroyed 12 | . . 3 . . . 2 . . 2 3 1 . . . 1 Melee Attacks 26 | . . 2 . . . . 4 . 1 . 17 . . . 2 Impact 4 | . . . . . . . 4 . . . . . . . . Slashing 20 | . . . . . . . . . 1 . 17 . . . 2 Piercing . | . . . . . . . . . . . . . . . . Sneak Attacks 3 | . . 2 . . . . . . . . 1 . . . . Combat Hostiles . | . . . . . . . . . . . . . . . . Follow-up Attacks . | . . . . . . . . . . . . . . . . Damage Inflicted 13725 | 30 512 1681 391 . 297 3381 117 1309 2767 1788 1405 . . 16 31 Guns 11434 | 30 415 1618 366 . 237 2927 83 1090 2680 1408 580 . . . . Cannons 436 | . . . . . . . . . . 376 40 . . . 20 Explosions 804 | . 94 42 . . . 415 34 219 . . . . . . . Melee 779 | . . . . . . . . . . . 779 . . . . Ramming 272 | . 3 21 25 . 60 39 . . 87 4 6 . . 16 11 Kinetic 9680 | . 51 947 366 . 237 1886 39 1090 2680 1784 580 . . . 20 Thermal 810 | . 94 42 . . . 600 34 . . . 40 . . . . Explosive 219 | . . . . . . . . 219 . . . . . . . Electromagnetic 1965 | 30 364 671 . . . 856 44 . . . . . . . . Impact . | . . . . . . . . . . . . . . . . Slashing 779 | . . . . . . . . . . . 779 . . . . Piercing . | . . . . . . . . . . . . . . . . Highest Corruption 9 | . . . . . . . . . 4 1 9 . . . 3 Average Corruption 1 | . . . . . . . . . 1 1 8 . . . 2 Corruption Purged . | . . . . . . . . . . . . . . . . Effects 34 | . . . . . . . . . 25 2 5 . . . 2 Message Errors 9 | . . . . . . . . . 6 . 2 . . . 1 Matter Fused 3 | . . . . . . . . . . . 2 . . . 1 Heat Flow Errors 5 | . . . . . . . . . 5 . . . . . . Energy Discharges 4 | . . . . . . . . . 4 . . . . . . Data Loss (minor) 7 | . . . . . . . . . 6 . 1 . . . . Targeting Errors 5 | . . . . . . . . . 4 1 . . . . . Weapon Failures 1 | . . . . . . . . . . 1 . . . . . Overload Shots . | . . . . . . . . . . . . . . . . Overflow Damage 119 | . 7 13 . . . 46 5 . . 40 8 . . . . Projectiles 30 | . . . . . . . . . . 30 . . . . . Explosions 81 | . 7 13 . . . 46 5 . . 10 . . . . . Melee 8 | . . . . . . . . . . . 8 . . . . Knockbacks 7 | . . . . . . 1 . . 1 5 . . . . . Impact 2 | . . . . . . 1 . . 1 . . . . . . Kinetic 4 | . . . . . . . . . . 4 . . . . . Secondary 1 | . . . . . . . . . . 1 . . . . . Self-Inflicted Damage 311 | . . 34 . . . 146 21 25 . 70 3 . . 7 5 Shots 7 | . . 1 . . . 3 1 1 . 1 . . . . . Rammed 35 | . 2 4 4 . 4 5 . . 8 . 2 . . 3 3 Targets Rammed 41 | . 2 5 4 . 6 5 . . 10 1 2 . . 3 3 Kicked 1 | . . . . . . . . . . 1 . . . . . Crushed 5 | . . 1 . . 2 . . . 2 . . . . . . Highest Temperature 360 | . 276 174 13 . 3 360 51 168 266 66 49 5 . . . Average Temperature 65 | . 133 47 7 . 3 82 21 59 67 20 26 5 . . . Received Heat Transfer 2609 | . 78 204 41 . 27 567 9 126 270 708 369 63 54 18 75 Effects 3 | . . . . . . 1 . . 2 . . . . . . Energy Bleed 2 | . . . . . . . . . 2 . . . . . . Short Circuit 1 | . . . . . . 1 . . . . . . . . . Siege Activations . | . . . . . . . . . . . . . . . . Robots Corrupted . | . . . . . . . . . . . . . . . . Combat Hostiles . | . . . . . . . . . . . . . . . . Parts Fried 5 | . 1 1 . . . 3 . . . . . . . . . Impact Corruptions . | . . . . . . . . . . . . . . . . Robots Melted . | . . . . . . . . . . . . . . . . Combat Hostiles . | . . . . . . . . . . . . . . . . Parts Melted 2 | . . . . . . 2 . . . . . . . . . Heat Transferred 1224 | . 150 100 . . . 894 . . . . 80 . . . . Parts Sabotaged . | . . . . . . . . . . . . . . . . Parts Stolen . | . . . . . . . . . . . . . . . . Parts Stripped . | . . . . . . . . . . . . . . . . Power Chain Reactions 6 | . 1 1 . . . 3 1 . . . . . . . . Missiles Intercepted . | . . . . . . . . . . . . . . . . Alert | -11 -10 -9 -9 -9 -8 -8 -8 -8 -7 -6 -5 -4 -4 -3 -3 ------- Run | Scr Mat Mat Min Exi Min Mat Sto Gar Fac Fac Fac Fac Ext Res Tes Peak Influence 742 | 5 247 395 163 . 75 512 287 742 608 353 226 171 118 76 136 Initial 389 | . 3 43 103 . . 1 215 186 389 259 102 109 83 61 42 Average 232 | 2 94 207 121 . 20 119 245 463 413 253 160 122 88 65 91 Maximum Alert Level 3 | . 1 1 . . . 2 1 3 2 1 1 . . . . Low Security (%) 48 | 100 89 40 100 . 100 80 . 10 . 23 74 100 100 100 100 Level 1 35 | . 10 59 . . . 14 100 21 57 76 26 . . . . Level 2 16 | . . . . . . 4 . 64 42 . . . . . . Level 3 . | . . . . . . . . 2 . . . . . . . Level 4 . | . . . . . . . . . . . . . . . . Level 5 . | . . . . . . . . . . . . . . . . High Security . | . . . . . . . . . . . . . . . . Max Security . | . . . . . . . . . . . . . . . . Squads Dispatched 39 | . . 4 . . . 1 . . 11 9 2 2 4 . 6 Investigation 9 | . . . . . . 1 . . 1 1 2 2 2 . . Extermination 8 | . . . . . . . . . 5 2 . . . . 1 Reinforcement 18 | . . 4 . . . . . . 5 3 . . 2 . 4 Assault 2 | . . . . . . . . . . 1 . . . . 1 Garrison 2 | . . . . . . . . . . 2 . . . . . Intercept . | . . . . . . . . . . . . . . . . Construction Impeded 3 | . . . . . . . . . 1 1 . . . . 1 Haulers Reinforced 3 | . . . . . . . . . 2 1 . . . . . Stealth | -11 -10 -9 -9 -9 -8 -8 -8 -8 -7 -6 -5 -4 -4 -3 -3 --------- Run | Scr Mat Mat Min Exi Min Mat Sto Gar Fac Fac Fac Fac Ext Res Tes Distress Signals 9 | . . 1 1 . 1 2 . . . . 1 . . . 3 Communications Jammed . | . . . . . . . . . . . . . . . . Distress Signals . | . . . . . . . . . . . . . . . . Times Spotted 259 | . 21 50 13 . 3 42 1 15 37 20 13 13 5 1 25 Peak Tracking Total 19 | . 4 7 3 . 1 5 1 4 5 4 7 7 5 1 19 Tactical Retreats 23 | . 3 4 2 . . 4 . 1 2 . 2 2 . . 3 Traps | -11 -10 -9 -9 -9 -8 -8 -8 -8 -7 -6 -5 -4 -4 -3 -3 ------- Run | Scr Mat Mat Min Exi Min Mat Sto Gar Fac Fac Fac Fac Ext Res Tes Traps Triggered 12 | . 1 . . . . 1 . 7 2 . . . 1 . . Indirectly . | . . . . . . . . . . . . . . . . Trap Hack Attempts . | . . . . . . . . . . . . . . . . Triggered . | . . . . . . . . . . . . . . . . Disarmed . | . . . . . . . . . . . . . . . . Reprogrammed . | . . . . . . . . . . . . . . . . Reused . | . . . . . . . . . . . . . . . . Traps Extracted . | . . . . . . . . . . . . . . . . Installed . | . . . . . . . . . . . . . . . . Triggered 1 | . 1 . . . . . . . . . . . . . . Machines | -11 -10 -9 -9 -9 -8 -8 -8 -8 -7 -6 -5 -4 -4 -3 -3 ---------- Run | Scr Mat Mat Min Exi Min Mat Sto Gar Fac Fac Fac Fac Ext Res Tes Machines Disabled 4 | . . . 1 . . . 1 . . 1 . . . . 1 Max in Single Turn 1 | . . . 1 . . . 1 . . 1 . . . . 1 Garrison Access 1 | . . . . . . . . . . 1 . . . . . Machines Sabotaged . | . . . . . . . . . . . . . . . . Garrisons Compromised . | . . . . . . . . . . . . . . . . Overloaded Fab Kills . | . . . . . . . . . . . . . . . . Fab Network Shutdowns . | . . . . . . . . . . . . . . . . Hacking | -11 -10 -9 -9 -9 -8 -8 -8 -8 -7 -6 -5 -4 -4 -3 -3 --------- Run | Scr Mat Mat Min Exi Min Mat Sto Gar Fac Fac Fac Fac Ext Res Tes Machines Accessed 45 | . 8 4 . 1 1 10 4 . 4 3 2 4 1 . 3 Terminals 31 | . 6 2 . . 1 6 3 . 1 2 2 4 1 . 3 Fabricators . | . . . . . . . . . . . . . . . . Repair Stations 4 | . . . . . . 2 . . 1 1 . . . . . Recycling Units 6 | . 2 1 . . . 1 . . 2 . . . . . . Scanalyzers 2 | . . 1 . . . 1 . . . . . . . . . Garrison Access 1 | . . . . . . . 1 . . . . . . . . Total Hacks 137 | . 23 14 . 1 1 41 10 . 8 8 8 12 3 . 8 Successful 84 | . 14 9 . 1 . 31 7 . 4 4 2 5 1 . 6 Failed 52 | . 9 5 . . 1 9 3 . 4 4 6 7 2 . 2 Catastrophic 6 | . . . . . . . . . . . 1 4 . . 1 Database Lockouts 1 | . . . . . . 1 . . . . . . . . . Manual 69 | . 16 7 . 1 1 14 7 . 4 4 6 6 . . 3 Terminals 104 | . 21 8 . . 1 26 9 . 4 4 8 12 3 . 8 Fabricators . | . . . . . . . . . . . . . . . . Repair Stations 9 | . . . . . . 4 . . 1 4 . . . . . Recycling Units 9 | . 2 2 . . . 2 . . 3 . . . . . . Scanalyzers 13 | . . 4 . . . 9 . . . . . . . . . Garrison Access 1 | . . . . . . . 1 . . . . . . . . Terminal Hacks 33 | . 7 4 . 1 . 10 3 . . . . 3 1 . 4 Part Schematic 1 | . . 1 . . . . . . . . . . . . . Robot Analysis 7 | . 4 1 . . . 2 . . . . . . . . . Prototype ID Bank 8 | . 2 1 . . . 2 1 . . . . 1 . . 1 Open Door 2 | . . . . . . . . . . . . 1 1 . . Emergency Access Points 2 | . . . . . . 1 . . . . . . . . 1 Terminal Index 1 | . . . . . . 1 . . . . . . . . . Scanalyzer Index 1 | . . . . . . 1 . . . . . . . . . Unreport Threat 1 | . . 1 . . . . . . . . . . . . . Locate Traps 5 | . 1 . . . . 1 1 . . . . . . . 2 Hauler Manifests 1 | . . . . . . 1 . . . . . . . . . Registered Components 1 | . . . . . . 1 . . . . . . . . . Zone Layout 2 | . . . . . . . 1 . . . . 1 . . . EX-Prototype ID Bank 1 | . . . . 1 . . . . . . . . . . . Fabricator Hacks . | . . . . . . . . . . . . . . . . Repair Station Hacks 8 | . . . . . . 4 . . . 4 . . . . . Scan Component 4 | . . . . . . 2 . . . 2 . . . . . Repair 4 | . . . . . . 2 . . . 2 . . . . . Recycling Unit Hacks 8 | . 2 2 . . . 1 . . 3 . . . . . . Report Inventory 6 | . 2 1 . . . 1 . . 2 . . . . . . Retrieve Components 2 | . . 1 . . . . . . 1 . . . . . . Scanalyzer 11 | . . 2 . . . 9 . . . . . . . . . Insert Component 5 | . . 1 . . . 4 . . . . . . . . . Analyze 6 | . . 1 . . . 5 . . . . . . . . . Garrison Access Hacks 1 | . . . . . . . 1 . . . . . . . . Unlock Access 1 | . . . . . . . 1 . . . . . . . . Unauthorized Hacks 23 | . 5 1 . . . 7 3 . 1 . 2 2 . . 2 Terminals 23 | . 5 1 . . . 7 3 . 1 . 2 2 . . 2 Track 7 | . 1 . . . . 3 1 . . . 1 . . . 1 Botnet 14 | . 3 1 . . . 3 2 . 1 . 1 2 . . 1 Operators 2 | . 1 . . . . 1 . . . . . . . . . Fabricators . | . . . . . . . . . . . . . . . . Repair Stations . | . . . . . . . . . . . . . . . . Recycling Units . | . . . . . . . . . . . . . . . . Scanalyzers . | . . . . . . . . . . . . . . . . Garrison Access . | . . . . . . . . . . . . . . . . Data Cores Recovered . | . . . . . . . . . . . . . . . . Used . | . . . . . . . . . . . . . . . . Hacking Detections 34 | . 6 3 . . 1 7 2 . 3 3 2 3 1 . 3 Full Trace Events 9 | . 3 . . . . . . . . 1 2 2 1 . . Feedback Events 1 | . . . . . . . . . . 1 . . . . . Corruption 1 | . . . . . . . . . . 1 . . . . . Feedback Blocked . | . . . . . . . . . . . . . . . . Robot Schematics Acquired . | . . . . . . . . . . . . . . . . Robots Built . | . . . . . . . . . . . . . . . . Matter . | . . . . . . . . . . . . . . . . Time . | . . . . . . . . . . . . . . . . Total Robot Build Rating . | . . . . . . . . . . . . . . . . Part Schematics Acquired 6 | . . 2 . . . 4 . . . . . . . . . Parts Built . | . . . . . . . . . . . . . . . . Matter . | . . . . . . . . . . . . . . . . Time . | . . . . . . . . . . . . . . . . Total Part Build Rating . | . . . . . . . . . . . . . . . . Parts Repaired 4 | . . . . . . 2 . . . 2 . . . . . Time 171 | . . . . . . 95 . . . 76 . . . . . Parts Recycled . | . . . . . . . . . . . . . . . . Recycled Matter . | . . . . . . . . . . . . . . . . Retrieved Matter . | . . . . . . . . . . . . . . . . Retrieved Components 15 | . . 5 . . . . . . 10 . . . . . . Parts Scanalyzed 5 | . . 1 . . . 4 . . . . . . . . . Part Schematics Acquired 5 | . . 1 . . . 4 . . . . . . . . . Parts Damaged . | . . . . . . . . . . . . . . . . Bothacking | -11 -10 -9 -9 -9 -8 -8 -8 -8 -7 -6 -5 -4 -4 -3 -3 ------------ Run | Scr Mat Mat Min Exi Min Mat Sto Gar Fac Fac Fac Fac Ext Res Tes Used RIF Installer 1 | . . . . . . . . 1 . . . . . . . Robots Hacked 1 | . . 1 . . . . . . . . . . . . . Non-combat 1 | . . 1 . . . . . . . . . . . . . Combat . | . . . . . . . . . . . . . . . . Robot Hacks Applied 1 | . . 1 . . . . . . . . . . . . . parse_system 1 | . . 1 . . . . . . . . . . . . . Relay Couplers Released 2 | . . . . . . . . . . 2 . . . . . Machine Destruction 2 | . . . . . . . . . . 2 . . . . . Robots Rewired 1 | . . . . . . . . . . . . . . . 1 Allies Hacked . | . . . . . . . . . . . . . . . . Hacks Repelled . | . . . . . . . . . . . . . . . . Allies | -11 -10 -9 -9 -9 -8 -8 -8 -8 -7 -6 -5 -4 -4 -3 -3 -------- Run | Scr Mat Mat Min Exi Min Mat Sto Gar Fac Fac Fac Fac Ext Res Tes Total Allies 6 | . . . 5 . . . . . . . . . . . 1 Largest Group 5 | . . . 5 . . . . . . . . . . . 1 Highest-Rated Group 161 | . . . 97 . . . . . . . . . . . 161 Highest-Rated Ally 161 | . . . 31 . . . . . . . . . . . 161 Total Orders . | . . . . . . . . . . . . . . . . Ally Attacks 23 | . . . 22 . . . . . . . . . . . 1 Total Damage 210 | . . . 170 . . . . . . . . . . . 40 Kills 2 | . . . 2 . . . . . . . . . . . . Allies Corrupted . | . . . . . . . . . . . . . . . . Allies Melted . | . . . . . . . . . . . . . . . . Intel | -11 -10 -9 -9 -9 -8 -8 -8 -8 -7 -6 -5 -4 -4 -3 -3 ------- Run | Scr Mat Mat Min Exi Min Mat Sto Gar Fac Fac Fac Fac Ext Res Tes Robot Analysis Total 7 | . 4 1 . . . 2 . . . . . . . . . Derelict Logs Recovered 2 | . . . 2 . . . . . . . . . . . . Drone Launches . | . . . . . . . . . . . . . . . . Drone Recoveries . | . . . . . . . . . . . . . . . . Exploration | -11 -10 -9 -9 -9 -8 -8 -8 -8 -7 -6 -5 -4 -4 -3 -3 ------------- Run | Scr Mat Mat Min Exi Min Mat Sto Gar Fac Fac Fac Fac Ext Res Tes Turns Passed 13064 | 44 697 1661 592 805 758 2754 222 991 2865 918 250 115 51 25 316 Spaces Moved 6742 | 30 440 709 270 446 355 966 115 469 1416 353 234 270 140 41 488 Core 874 | . . . . . . . . . 1 23 234 124 15 41 436 Treads 4772 | . 6 540 270 446 355 966 115 469 1415 190 . . . . . Legs 201 | 30 31 . . . . . . . . 140 . . . . . Wheels 572 | . 403 169 . . . . . . . . . . . . . Hover . | . . . . . . . . . . . . . . . . Flight 323 | . . . . . . . . . . . . 146 125 . 52 Fastest Speed 35 | 120 100 150 180 180 180 165 165 170 160 50 50 35 35 50 40 Average Speed 149 | 120 117 173 180 180 193 168 170 187 176 164 54 41 36 50 50 Slowest Speed 1650 | 120 160 240 180 180 200 200 190 200 1650 270 200 50 50 50 100 Overloaded Moves . | . . . . . . . . . . . . . . . . Propulsion Burnouts . | . . . . . . . . . . . . . . . . Robots Hopped 4 | . . . . . . . . . . . . . . . 4 Cave-ins Triggered . | . . . . . . . . . . . . . . . . Exploration Rate (%) 39 | 2 84 54 57 84 52 61 16 61 37 12 8 10 27 2 60 Regions Visited 15 Branch Regions 6 Pre-discovered Areas . | . . . . . . . . . . . . . . . . Known Exits Taken 4 | . . . . . 1 . 1 . 1 1 . . . . . Unknown Exits Taken 10 | 1 1 1 1 1 . 1 . . . . 1 1 1 1 . Scrap Searched 1 | . . . 1 . . . . . . . . . . . . Spaces Dug 4 | . . . . . . . 2 . 1 . . . . . 1 Terrain Destroyed 85 | . 3 1 . . . 11 8 28 1 31 1 . . . 1 Melee 4 | . . . . . . . 2 . 1 . . . . . 1 Projectile 7 | . . . . . . . . . . 6 1 . . . . AOE 74 | . 3 1 . . . 11 6 28 . 25 . . . . . Terrain Rammed . | . . . . . . . . . . . . . . . . Walls Destroyed . | . . . . . . . . . . . . . . . . Machines Disabled . | . . . . . . . . . . . . . . . . Actions | -11 -10 -9 -9 -9 -8 -8 -8 -8 -7 -6 -5 -4 -4 -3 -3 --------- Run | Scr Mat Mat Min Exi Min Mat Sto Gar Fac Fac Fac Fac Ext Res Tes Total 8923 | 32 562 1003 309 450 402 1916 132 555 1677 590 299 270 139 44 543 Wait 1312 | . 57 158 1 . 25 818 . 11 73 158 11 . . . . Move 6718 | 29 439 708 269 445 354 965 114 467 1415 352 233 269 139 40 480 Hop 4 | . . . . . . . . . . . . . . . 4 Pick Up 92 | . 14 17 . 2 2 16 2 10 24 2 1 . . . 2 Fast Attach 44 | . 3 2 1 . 1 7 1 1 10 5 4 1 . 1 7 Attach 37 | . . 5 1 . 2 5 1 2 7 9 3 . . . 2 Detach 14 | . 1 2 . . . 1 . . 2 2 3 . . . 3 Swap 55 | . 10 11 . 1 1 10 3 7 11 1 . . . . . Drop 107 | . 8 13 1 2 1 10 5 15 39 7 1 . . . 5 Fire 422 | 3 28 70 32 . 10 79 2 32 85 53 24 . . . 4 Melee 26 | . . 2 . . . . 4 . 1 . 17 . . . 2 Ram 9 | . 1 . . . . . . . . . 2 . . 3 3 Kick 1 | . . . . . . . . . . 1 . . . . . Crush 31 | . 1 5 4 . 6 5 . . 10 . . . . . . Escape Stasis 33 | . . . . . . . . 10 . . . . . . 23 Rewire 18 | . . 10 . . . . . . . . . . . . 8 Trap . | . . . . . . . . . . . . . . . . Miscellaneous . | . . . . . . . . . . . . . . . . Route ------- -11/Scrapyard -10/Materials (discovered 4 exits: *Mat x3 / [*Min]) -9/Materials (discovered 2 exits: *Mat / [*Min]) -9/Mines (discovered 3 exits: *Mat x2 / *Exi) -9/Exiles -8/Mines -8/Materials (discovered 4 exits: *Fac x2 / *Sto x2) -8/Storage -8/Garrison (discovered 2 exits: *Fac x2) -7/Factory -6/Factory -5/Factory -4/Factory -4/Extension -3/Research -3/Testing History --------- Turn | Location | Event 1 | -11/Scrapyard | Discovered new exit (range 1) 45 | -11/Scrapyard | Entered Materials 153 | -10/Materials | Discovered new exit (range 15) 291 | -10/Materials | Discovered new exit (range 12) 315 | -10/Materials | Build established: Mutant 431 | -10/Materials | Discovered new exit (range 15) 709 | -10/Materials | Discovered new exit (range 4) 731 | -10/Materials | Build established: Hauler-Mutant 742 | -10/Materials | Entered another Materials area 742 | -9/Materials | Evolved 2 slots: Propulsion x1, Utility x1 1480 | -9/Materials | Discovered new exit (range 10) 2078 | -9/Materials | Discovered new exit (range 9) 2403 | -9/Materials | Entered Mines 2547 | -9/Mines | Discovered new exit (range 6) 2669 | -9/Mines | Assisted by bots powering up and referring to "LRC-V3" 2673 | -9/Mines | Identified exit to Materials 2699 | -9/Mines | Assembled infested the area 2721 | -9/Mines | Learned Materials emergency access door positions 2746 | -9/Mines | Core integrity fell below 50% 2986 | -9/Mines | Deemed a non-threat by the Exiles lab entrance 2988 | -9/Mines | Discovered new exit (range 5) 2995 | -9/Mines | Entered Exiles 3039 | -9/Exiles | Met 8R-AWN 3066 | -9/Exiles | Met EX-HEX 3185 | -9/Exiles | Visited The Gauntlet 3291 | -9/Exiles | Met EX-DEC 3372 | -9/Exiles | Met EX-BIN 3397 | -9/Exiles | Aligned with FarCom system 3399 | -9/Exiles | Given EX-Vault access code 3440 | -9/Exiles | Opened EX-Vault 3456 | -9/Exiles | Found Gui. Plasma Cannon 3465 | -9/Exiles | Found Modified TNC 3502 | -9/Exiles | Warned to stay clear of 0b10 Research branches 3782 | -9/Exiles | Discovered new exit (range 12) 3800 | -9/Exiles | Stole two prototypes: Gui. Plasma Cannon, Modified TNC 3800 | -9/Exiles | Entered Mines 4392 | -8/Mines | Discovered exit to Materials (range 2) 4558 | -8/Mines | Entered Materials 4558 | -8/Materials | Evolved 2 slots: Utility x1, Weapon x1 4863 | -8/Materials | Lost 3 parts (1n1u1w) 5407 | -8/Materials | Build established: Hauler-Skirmisher 5984 | -8/Materials | Discovered new exit (range 16) 6102 | -8/Materials | Discovered new exit (range 15) 6553 | -8/Materials | Repaired Gauss Rifle 6642 | -8/Materials | Central database locked down 6762 | -8/Materials | Repaired Imp. EM Shotgun 7001 | -8/Materials | Discovered new exit (range 13) 7252 | -8/Materials | Discovered new exit (range 7) 7312 | -8/Materials | Entered Storage 7532 | -8/Storage | Identified exit to Garrison 7534 | -8/Storage | Entered Garrison 7643 | -8/Garrison | Triggered checkpoint 7956 | -8/Garrison | Discovered new exit (range 13) 8112 | -8/Garrison | Triggered checkpoint 8128 | -8/Garrison | Triggered checkpoint 8202 | -8/Garrison | Spotted B-75 Beast 8212 | -8/Garrison | Destroyed B-75 Beast 8404 | -8/Garrison | Triggered checkpoint 8491 | -8/Garrison | Discovered new exit (range 9) 8516 | -8/Garrison | Installed Relay Interface Framework 8525 | -8/Garrison | Entered Factory 8525 | -7/Factory | Evolved 2 slots: Propulsion x1, Utility x1 8527 | -7/Factory | FarCom data flow suspended 9465 | -7/Factory | Build established: Scavenger-Tank 11109 | -7/Factory | Discovered new exit (range 12) 11134 | -7/Factory | Identified exit to Factory 11390 | -7/Factory | Entered another Factory area 11390 | -6/Factory | Evolved 2 slots: Propulsion x1, Utility x1 11726 | -6/Factory | Repaired Imp. Medium Treads 11754 | -6/Factory | Repaired Lgt. Treads 12116 | -6/Factory | Garrison activated, responded to threat 12191 | -6/Factory | Discovered new exit (range 11) 12295 | -6/Factory | Core integrity fell below 50% 12307 | -6/Factory | Identified exit to Factory 12308 | -6/Factory | Entered another Factory area 12308 | -5/Factory | Evolved 2 slots: Power x1, Utility x1 12315 | -5/Factory | Lost 10 parts (1p5n4w) 12525 | -5/Factory | Lost 6 parts (2n3u1w) 12554 | -5/Factory | Build established: Mutant 12555 | -5/Factory | Discovered new exit (range 7) 12558 | -5/Factory | Entered another Factory area 12558 | -4/Factory | Evolved 2 slots: Propulsion x1, Utility x1 12648 | -4/Factory | Spotted B-86 Titan 12671 | -4/Factory | Discovered new exit (range 6) 12673 | -4/Factory | Entered Extension 12713 | -4/Extension | Spotted B-86 Titan 12716 | -4/Extension | Spotted B-86 Titan 12723 | -4/Extension | Discovered new exit (range 3) 12724 | -4/Extension | Entered Research 12724 | -3/Research | Evolved 2 slots: Utility x2 12740 | -3/Research | Discovered new exit (range 14) 12749 | -3/Research | Entered Testing 12768 | -3/Testing | Spotted PX-UN5Q13UD85 12777 | -3/Testing | Rewired PX-UN5Q13UD85 12789 | -3/Testing | Spotted Alpha 7 12790 | -3/Testing | Protovariant out of control (PX-UN5Q13UD85) 12840 | -3/Testing | Found Prototype Ballistic Cannon 12840 | -3/Testing | Identified Perforator 12857 | -3/Testing | Spotted PX-ZT58R9AC1P 12882 | -3/Testing | Scanned by Researcher 12958 | -3/Testing | Spotted Investigator 13009 | -3/Testing | Lost 3 parts (3n) 13026 | -3/Testing | Core integrity fell below 50% 13031 | -3/Testing | Spotted Striker 13033 | -3/Testing | Spotted Striker 13050 | -3/Testing | Core integrity fell below 20% 13065 | -3/Testing | Destroyed by Striker with Compact Linear Accelerator Last Messages --------------- 13010_ Held in stasis. 13010_ Investigator is analyzing... 13019_ Slammed into S-43 Plague. 13020_ Destabilizing: System corrupted (+1). 13024_ K-01 Serf cleans the Terminal. 13025_ Q-thruster destroyed. 13030_ MYVIFZCYHTP#:K#19AZBSX/5 B5:8NL#U4 13032_ Cmb. Gravmag System destroyed. 13037_ Knocked back. 13049_ Connecting with Terminal... >>Access(Emergency) Found 1 emergency access door: (22,71) Map updated. 13049_ Terminal disabled. 13055_ System corrupted: Matter fused (-10). 13056_ Slug penetrates Wall. 13059_ Penetrated by Slug. 13063_ Slug penetrates Wall. 13063_ Slug penetrates G-67 Veteran. Map ----- +----------------------------------------------------+ | ??????????????????????????########?# | | ??????????????????????????? !# | | #???????????????????????????""""" # ###+##### | | /??#??????????????????????""""" + # ??#### | | #??????????????????????""""" # #" "#???? | | ?????????????????????? # #" ""#???? | | """ ????????????????????" """"" ?# #"! "#???? | | """??????????????????????# """"" ?# ##"""!!#???? | | """????????????????????????"""""??# #????""#???? | | ???????????##########???? ??# #????###???? | | ???????????# #?????###???# #??????????? | | #+###?????????#/ #???????????# #??????????? | | ########### #??????###??# #??????????? | | T" # #??????#" ?# #??????????? | | / ! #??????" ?# #??????????? | | # #??????" # #??????????? | | ### ##### # #??????" " # #??????????? | | ##?# #???# # #??????" " #??????????? | | #??# #???# # #??????#""" # #??????????? | | ??# #???# ###+########????###### #??????????? | | #??#+##### ## h u #????????## ##?????????? | | ##? ?# ## """ """ ########## #?????????? | | !# """" ?# ## """ """ # #?????????? | | = # """" ## ## """s""" # #?????????? | | + """" + ks s # ####### #?????????? | | # """" #####hg K ! @ # """ ######?????????? | | ! # #???# K # #""T""#??????????????? | | ###?######???# # #"" ""######?????????? | | # #?????????##########;### k #?????????? | | # ########### ##### # #?????????? | | # # """" # ]]= ]! #?????????? | | ############ + """" # ]]= !! #?????????? | | ???????????# # """" + ]=[ ! ##?????????? | | ???????????# # """" # #??????????? | | ???????????# # # #??????????? | | ???????????# ######## +??????????? | | ???????????# ???? #??????????? | | ?????????? ?? ""T"" +??????????? | | ????????? """"" #??????????? | | ???????? ############+### #######+##??????????? | | ???????#????????????????######???????????????????? | | ?????????????????????????????????????????????????? | | ?????????????????????????????????????????????????? | | ?????????????????????????????????????????????????? | | ?????????????????????????????????????????????????? | | ?????????????????????????????????????????????????? | | ?????????????????????????????????????????????????? | | ?????????????????????????????????????????????????? | | | | | +----------------------------------------------------+ Best States ------------- Heat Dissipation 46 Energy Generation 18 Energy Capacity 310 Matter Stores 300 Matter Capacity 300 Sight Range 22 Robot Scan Range 16 Terrain Scan Density 10 Armor Coverage 225 Weapon Shielding 33 Evasion (%) 63 Recoil Reduction 4 Item Schematics ----------------- Lrg. Storage Unit | -9/Materials | Hacked Propulsion Shielding | -9/Materials | Scanalyzed Adv. Sensor Array | -8/Materials | Scanalyzed Signal Interpreter | -8/Materials | Scanalyzed Hrd. Medium Armor Plating | -8/Materials | Scanalyzed Gauss Rifle | -8/Materials | Scanalyzed Robot Schematics ------------------ None Fabricated ------------ Nothing Alien Tech Used ----------------- None Achievements -------------- None Challenges ------------ None Game ------ Seed ExplosiveTargetPropulsion Manual? 0 Play Time 01:45:21 Cumulative 68.4 hours Start 2020.10.19 @ 22:45:23 End 2020.10.20 @ 01:11:34 Sessions 1 Manual Loads 0 Difficulty Rogue Special Mode None Game No. 60 Rogue 60 Adventurer 0 Explorer 0 Win Type - Total 1 Types 1/0/0/0/0/0/0/0/0 Lore% 39 Gallery% 47 Achievement% 38 Wizard Run 0 Options --------- ASCII 1 Keyboard 1 Movement Arrows Keybinds 0 Fullscreen 1 Font 24/Proggy Map View 76x50 Tactical HUD 1 Map Filters NONE Filters NONE Steam 1 RUN: d1d5d92b-6720-4cbe-9f03-27197676bb70